bitfinex-derivatives/quotes_SOLF0:USTF0_20260217
["timestamp","ask_amount","ask_price","bid_price","bid_amount"]
[1771298259321,10.3617,86.906,86.861,76.05081916]
[1771298259927,10.3617,86.906,86.862,3.57081916]
[1771298260127,12.6800052,86.906,86.862,3.57081916]
[1771298260323,10.3626,86.899,86.862,3.57081916]
[1771298260529,2.70804274,86.88,86.831,3.57081916]
[1771298260728,2.3183052,86.879,86.832,72.48]
[1771298261229,2.31810832,86.892,86.841,3.57081916]
[1771298262332,2.31810832,86.892,86.843,3.57081916]
[1771298262826,10.3641,86.886,86.843,3.57081916]
[1771298263027,2.31810832,86.892,86.843,3.57081916]
[1771298263226,2.30183809,86.889,86.842,72.48]
[1771298264329,2.30183809,86.889,86.842,76.22684437]
[1771298264533,2.30183809,86.889,86.843,3.74684437]
[1771298264732,10.3639,86.888,86.843,3.74684437]
[1771298265028,2.32733251,86.902,86.851,3.74684437]
[1771298265930,2.32733251,86.897,86.851,3.74684437]
[1771298266634,2.40094757,86.885,86.842,72.48]
[1771298267734,2.40094757,86.885,86.842,76.22684437]
[1771298269237,2.40094757,86.885,86.842,3.74684437]
[1771298269435,2.40094757,86.885,86.843,72.48]
[1771298269734,10.3651,86.877,86.843,72.48]
[1771298270935,2.40094757,86.885,86.844,3.80466751]
[1771298271134,2.40094757,86.885,86.845,72.48]
[1771298272935,10.3643,86.884,86.845,72.48]
[1771298273736,2.40094757,86.885,86.845,76.28466751]
[1771298275130,10.3634,86.892,86.5,113.64022028]
[1771298275131,2.39142724,86.884,86.831,3.80466751]
[1771298275334,2.39142724,86.884,86.832,72.48]
[1771298275831,2.39142724,86.879,86.826,3.80466751]
[1771298276030,2.39142724,86.879,86.827,72.48]
[1771298276234,2.39142724,86.879,86.821,10.3717]
[1771298276433,2.39142724,86.879,86.822,72.48]
[1771298276640,10.3663,86.868,86.822,72.48]
[1771298276839,12.77754283,86.868,86.822,72.48]
[1771298278052,10.3673,86.859,86.822,72.48]
[1771298278248,2.41124283,86.868,86.813,3.80466751]
[1771298278447,2.41124283,86.868,86.823,72.48]
[1771298278634,2.41124283,86.868,86.824,3.80466751]
[1771298278947,10.3673,86.859,86.824,76.28466751]
[1771298280946,2.41124283,86.868,86.825,3.80466751]
[1771298281441,2.51526987,86.866,86.807,10.3735]
[1771298281645,5.21577381,86.86,86.809,3.80466751]
[1771298281836,5.21577381,86.86,86.797,14.20610586]
[1771298281837,12.88516987,86.838,86.795,3.80466751]
[1771298282041,2.51526987,86.868,86.821,3.80466751]
[1771298282349,2.51526987,86.882,86.831,3.80466751]
[1771298283348,10.3652,86.877,86.831,3.80466751]
[1771298283549,10.3652,86.877,86.84,6.50517145]
[1771298284047,10.3652,86.877,86.841,3.80466751]
[1771298289449,2.47217875,86.909,86.851,3.80466751]
[1771298290253,2.47217875,86.909,86.853,3.80466751]
[1771298290756,10.3622,86.902,86.853,3.80466751]
[1771298290952,2.47162149,86.901,86.853,3.80466751]
[1771298291754,10.3628,86.897,86.853,3.80466751]
[1771298292650,2.47162149,86.896,86.853,3.80466751]
[1771298299156,2.44916412,86.891,86.853,3.80466751]
[1771298299361,2.44916412,86.891,86.854,72.48]
[1771298299564,2.44916412,86.903,86.855,3.81875834]
[1771298300268,2.44916412,86.903,86.857,3.81875834]
[1771298300663,10.3626,86.899,86.857,3.81875834]
[1771298301466,10.3626,86.899,86.86,2.70050394]
[1771298302369,10.3626,86.899,86.86,6.51926228]
[1771298303072,2.44916412,86.903,86.861,3.81875834]
[1771298303771,2.44916412,86.903,86.87,2.70050394]
[1771298305173,10.3622,86.902,86.87,2.70050394]
[1771298306874,2.44916412,86.903,86.87,6.51926228]
[1771298308677,10.3609,86.913,86.88,2.70050394]
[1771298309771,2.48807917,86.916,86.881,3.81875834]
[1771298309979,2.48807917,86.916,86.89,2.70050394]
[1771298310172,2.48807917,86.916,86.881,3.81875834]
[1771298310570,2.41504083,86.915,86.873,72.48]
[1771298310975,2.41504083,86.915,86.88,2.70050394]
[1771298311575,2.41504083,86.915,86.879,3.81875834]
[1771298311878,2.41504083,86.915,86.87,2.70050394]
[1771298312582,2.41504083,86.915,86.868,72.48]
[1771298312784,2.41019156,86.912,86.868,72.48]
[1771298313173,2.41019156,86.912,86.87,2.70050394]
[1771298313775,2.41019156,86.909,86.87,2.70050394]
[1771298314284,2.41019156,86.909,86.88,2.70050394]
[1771298315581,2.41019606,86.9,86.86,2.70050394]
[1771298316782,10.3632,86.894,86.86,2.70050394]
[1771298317478,10.3653,86.876,86.846,14.32980168]
[1771298317681,10.3653,86.876,86.796,34.57]
[1771298317682,2.40814352,86.927,86.87,2.70050394]
[1771298317880,2.40814352,86.927,86.871,3.81875834]
[1771298318680,2.41109344,86.909,86.871,3.81875834]
[1771298319784,12.77259344,86.908,86.871,3.81875834]
[1771298324088,12.79587242,86.906,86.871,3.81875834]
[1771298324683,72.48,86.931,86.857,72.48]
[1771298324684,10.3627,86.898,86.861,3.59228909]
[1771298331680,10.3627,86.898,86.86,2.70050394]
[1771298331681,2.42446733,86.894,86.85,2.70050394]
[1771298331890,2.42446733,86.894,86.84,75.18050394]
[1771298332285,12.78936733,86.879,86.84,2.70050394]
[1771298333187,10.3637,86.889,86.86,2.70050394]
[1771298333692,2.42419368,86.894,86.861,3.87135643]
[1771298334190,2.42419368,86.903,86.861,3.87135643]
[1771298334891,10.3625,86.899,86.861,3.87135643]
[1771298340101,12.8119253,86.899,86.861,3.87135643]
[1771298340598,2.4494253,86.898,86.861,3.87135643]
[1771298342293,2.45774474,86.894,86.842,3.87135643]
[1771298342799,2.45774474,86.894,86.84,2.69819382]
[1771298343001,2.45774474,86.894,86.83,6.56955025]
[1771298343201,2.45774474,86.894,86.831,3.87135643]
[1771298343794,2.45442769,86.881,86.831,3.87135643]
[1771298343999,2.45442769,86.879,86.819,18.20115811]
[1771298344197,2.45442769,86.869,86.82,6.56955025]
[1771298345600,2.45442769,86.869,86.821,3.87135643]
[1771298345801,10.3676,86.857,86.821,3.87135643]
[1771298346196,2.49851229,86.856,86.82,2.69819382]
[1771298346400,2.49851229,86.852,86.809,3.87135643]
[1771298347804,2.7211546,86.849,86.809,3.87135643]
[1771298349510,2.7211546,86.849,86.8,2.69819382]
[1771298349511,2.72917435,86.847,86.796,3.87135643]
[1771298350708,2.70683395,86.829,86.781,3.87135643]
[1771298352009,2.70683395,86.819,86.77,2.69819382]
[1771298352400,2.70683395,86.819,86.769,3.87135643]
[1771298352601,2.70683395,86.807,86.769,3.87135643]
[1771298353805,10.3738,86.805,86.769,3.87135643]
[1771298354414,13.04906061,86.805,86.769,3.87135643]
[1771298356321,10.3744,86.799,86.76,6.5806386]
[1771298356525,10.3744,86.799,86.761,3.88244478]
[1771298363835,10.3752,86.793,86.761,3.88244478]
[1771298364431,2.71238773,86.798,86.761,3.88244478]
[1771298367235,10.375,86.795,86.761,3.88244478]
[1771298369638,2.71238773,86.798,86.761,3.88244478]
[1771298370733,72.5,86.83,86.771,3.88244478]
[1771298370734,10.3731,86.811,86.771,3.88244478]
[1771298371040,2.65165421,86.83,86.781,3.88244478]
[1771298371631,10.3709,86.829,86.791,3.88244478]
[1771298372333,13.02255421,86.829,86.791,3.88244478]
[1771298372638,2.65165421,86.828,86.791,3.88244478]
[1771298373338,10.3699,86.837,86.791,3.88244478]
[1771298375943,13.00582595,86.837,86.791,3.88244478]
[1771298376544,2.63592595,86.836,86.791,3.88244478]
[1771298377045,2.63592595,86.836,86.794,3.88244478]
[1771298378046,2.63514922,86.845,86.801,3.88244478]
[1771298378248,10.3679,86.854,86.811,3.88244478]
[1771298378745,2.62662567,86.851,86.811,3.88244478]
[1771298378944,2.62662567,86.849,86.79,2.69819382]
[1771298380641,2.57149976,86.833,86.79,2.69819382]
[1771298381637,2.57149976,86.831,86.79,2.69819382]
[1771298382846,12.93736992,86.83,86.79,2.69819382]
[1771298383244,12.93776992,86.827,86.784,3.88244478]
[1771298383444,2.56666992,86.826,86.784,3.88244478]
[1771298384244,2.57345676,86.849,86.791,3.91274282]
[1771298385651,10.3705,86.832,86.791,3.91274282]
[1771298386348,2.57336906,86.827,86.791,3.91274282]
[1771298386555,2.57336906,86.827,86.78,6.61093664]
[1771298387055,2.57336906,86.827,86.79,6.61093664]
[1771298389455,2.57336906,86.827,86.79,3.91274282]
[1771298389749,2.57336906,86.827,86.78,2.69819382]
[1771298389950,2.57336906,86.827,86.78,6.32911963]
[1771298390252,2.57336906,86.827,86.781,3.63092581]
[1771298390850,10.3713,86.825,86.781,3.63092581]
[1771298393356,12.96537131,86.825,86.781,3.63092581]
[1771298394555,12.96537131,86.825,86.756,21.36001652]
[1771298394556,2.59407131,86.824,86.77,2.69819382]
[1771298394758,2.59361334,86.819,86.76,2.69819382]
[1771298394960,10.3761,86.786,86.75,2.69819382]
[1771298395257,10.3761,86.786,86.746,3.63092581]
[1771298396463,2.59361334,86.785,86.746,3.63092581]
[1771298397461,2.57050559,86.781,86.733,3.63092581]
[1771298399854,2.57050559,86.781,86.741,3.63092581]
[1771298400061,10.3762,86.785,86.741,3.63092581]
[1771298400267,2.58510555,86.805,86.761,3.63092581]
[1771298401152,2.58510555,86.805,86.75,2.70623896]
[1771298401352,2.58835627,86.796,86.735,3.63092581]
[1771298401559,2.58835627,86.789,86.735,3.63092581]
[1771298401866,2.58835627,86.801,86.751,3.63092581]
[1771298404766,10.3747,86.798,86.751,3.63092581]
[1771298406170,12.65874849,86.798,86.751,3.63092581]
[1771298406559,10.3752,86.793,86.751,3.63092581]
[1771298406870,12.65183051,86.793,86.751,3.63092581]
[1771298407071,2.27663051,86.792,86.751,3.63092581]
[1771298407571,2.27663051,86.789,86.735,3.63092581]
[1771298407972,2.27663051,86.785,86.735,3.63092581]
[1771298408165,2.27663051,86.785,86.737,10.3819]
[1771298408366,2.27663051,86.785,86.738,3.63092581]
[1771298409067,2.27663051,86.785,86.73,2.70623896]
[1771298409068,2.27663051,86.785,86.741,3.63092581]
[1771298409367,10.375,86.795,86.751,3.63092581]
[1771298409768,10.3759,86.787,86.751,3.63092581]
[1771298415578,2.26482505,86.784,86.74,6.35270098]
[1771298416072,2.26482505,86.784,86.741,3.64646202]
[1771298416378,10.3765,86.782,86.741,3.64646202]
[1771298416575,12.64132505,86.782,86.741,3.64646202]
[1771298417979,10.377,86.778,86.741,3.64646202]
[1771298420182,10.377,86.778,86.709,14.32980168]
[1771298420183,2.25660414,86.798,86.751,3.64646202]
[1771298420873,2.25660414,86.798,86.738,3.64646202]
[1771298421078,2.25660414,86.798,86.74,3.64646202]
[1771298421278,10.3763,86.784,86.74,3.64646202]
[1771298421479,2.29642057,86.783,86.74,3.64646202]
[1771298423480,2.35072002,86.802,86.741,3.64646202]
[1771298423683,2.35072002,86.802,86.751,3.64646202]
[1771298424782,10.3757,86.789,86.751,3.64646202]
[1771298424985,2.35072002,86.802,86.751,3.64646202]
[1771298425278,2.35023398,86.796,86.751,3.64646202]
[1771298425876,2.35023398,86.782,86.739,3.64646202]
[1771298426676,10.3767,86.78,86.739,3.64646202]
[1771298426879,2.37726763,86.799,86.741,3.64646202]
[1771298427479,12.75176763,86.799,86.751,3.64646202]
[1771298427685,2.37726763,86.799,86.751,3.64646202]
[1771298428680,10.3754,86.791,86.751,3.64646202]
[1771298429985,10.3763,86.784,86.751,3.64646202]
[1771298431785,10.3752,86.793,86.751,3.64646202]
[1771298433678,20.7427,86.826,86.738,14.32980168]
[1771298433679,10.3739,86.804,86.761,3.64646202]
[1771298433887,2.38484882,86.825,86.771,3.64646202]
[1771298434378,2.38484882,86.825,86.781,3.64646202]
[1771298434778,10.373,86.812,86.781,3.64646202]
[1771298435583,10.373,86.812,86.763,3.64646202]
[1771298437487,10.59031365,86.854,86.76,2.70623896]
[1771298437488,2.34945376,86.838,86.791,3.64646202]
[1771298438292,2.34945376,86.851,86.801,3.64646202]
[1771298438490,2.34945376,86.869,86.811,3.64646202]
[1771298438689,2.34945376,86.869,86.821,3.64646202]
[1771298439084,10.3663,86.867,86.831,3.64646202]
[1771298439590,10.3663,86.867,86.808,10.3733]
[1771298439591,12.70998061,86.867,86.82,2.70623896]
[1771298439786,10.3675,86.858,86.817,3.64646202]
[1771298440179,10.3675,86.858,86.82,2.70623896]
[1771298440787,10.3675,86.858,86.794,72.52]
[1771298440788,2.27213498,86.88,86.84,2.70623896]
[1771298441890,10.3651,86.877,86.84,2.70623896]
[1771298442792,10.3651,86.877,86.841,3.64646202]
[1771298442992,10.3651,86.877,86.85,2.70623896]
[1771298444693,10.3651,86.877,86.841,3.64646202]
[1771298445386,10.3651,86.877,86.85,2.70623896]
[1771298445592,2.72502546,86.87,86.828,3.88762397]
[1771298446593,2.72502546,86.87,86.83,2.70623896]
[1771298446793,10.3661,86.869,86.83,2.70623896]
[1771298448685,2.72502546,86.87,86.84,2.70623896]
[1771298449898,2.72502546,86.87,86.83,2.70623896]
[1771298452704,2.77363685,86.869,86.828,3.88762397]
[1771298452899,2.77363685,86.869,86.82,6.41451711]
[1771298453097,2.77363685,86.869,86.821,3.70827815]
[1771298453797,2.77363685,86.865,86.821,3.70827815]
[1771298457406,10.3663,86.868,86.821,3.70827815]
[1771298458511,2.78495962,86.877,86.831,3.70827815]
[1771298459210,2.77833134,86.874,86.831,3.70827815]
[1771298460210,2.77833134,86.869,86.82,3.70827815]
[1771298461814,10.3672,86.86,86.82,3.70827815]
[1771298463016,10.3672,86.86,86.82,6.40837212]
[1771298463814,10.3672,86.86,86.821,3.70827815]
[1771298464015,2.8025236,86.868,86.821,3.70827815]
[1771298468212,2.84554037,86.882,86.831,3.70827815]
[1771298469718,2.84554037,86.882,86.833,3.70827815]
[1771298470915,2.84610852,86.879,86.832,10.3705]
[1771298471316,2.84610852,86.879,86.83,2.70009397]
[1771298471517,2.84610852,86.879,86.824,3.70827815]
[1771298471822,2.84610852,86.868,86.824,3.70827815]
[1771298472324,10.3651,86.877,86.831,3.70827815]
[1771298472523,2.84610852,86.876,86.831,3.70827815]
[1771298473423,10.3651,86.877,86.831,3.70827815]
[1771298475120,2.85985768,86.868,86.822,3.75644655]
[1771298476827,5.56755534,86.88,86.824,3.75644655]
[1771298477017,5.56755534,86.88,86.82,2.70009397]
[1771298477018,2.86746137,86.879,86.831,3.75644655]
[1771298478030,10.3644,86.884,86.832,3.75644655]
[1771298479035,2.876941,86.869,86.818,3.75644655]
[1771298480831,2.876941,86.865,86.818,3.75644655]
[1771298482131,2.876941,86.865,86.82,3.75644655]
[1771298482326,2.86132595,86.878,86.821,3.75644655]
[1771298482526,2.70009397,86.88,86.821,3.75644655]
[1771298482927,2.86329003,86.879,86.821,3.75644655]
[1771298483142,2.86329003,86.879,86.823,3.75644655]
[1771298483829,2.86329003,86.879,86.832,3.75644655]
[1771298486128,2.70009397,86.9,86.841,3.75644655]
[1771298486631,2.70009397,86.9,86.84,2.70009397]
[1771298486632,2.86340656,86.899,86.844,3.75644655]
[1771298487732,2.86340656,86.899,86.85,2.70009397]
[1771298487933,10.60307721,86.933,86.793,182.1419]
[1771298487934,2.86467238,86.912,86.861,3.75644655]
[1771298489027,2.86467238,86.912,86.86,2.70009397]
[1771298489028,2.86467238,86.912,86.865,3.75644655]
[1771298489726,2.84227221,86.899,86.851,3.75644655]
[1771298490328,2.70009397,86.89,86.851,3.75644655]
[1771298491138,2.84227221,86.899,86.851,3.75644655]
[1771298491833,2.84227221,86.899,86.853,3.75644655]
[1771298492039,2.70009397,86.91,86.853,3.75644655]
[1771298492040,13.06129397,86.91,86.853,3.75644655]
[1771298492340,2.28038821,86.909,86.853,3.75644655]
[1771298492836,2.28038821,86.909,86.854,3.75644655]
[1771298493036,2.28038821,86.909,86.868,3.75644655]
[1771298493435,2.70009397,86.92,86.868,3.75644655]
[1771298493639,5.00470196,86.92,86.868,3.75644655]
[1771298493840,2.30460799,86.919,86.868,3.75644655]
[1771298495443,2.28284161,86.917,86.868,3.75644655]
[1771298495936,10.3606,86.916,86.868,3.75644655]
[1771298496138,2.28284161,86.915,86.868,3.75644655]
[1771298497950,2.28284161,86.915,86.869,10.3661]
[1771298498351,2.28284161,86.915,86.87,3.75644655]
[1771298499546,2.28284161,86.915,86.854,72.52]
[1771298499547,2.70009397,86.9,86.855,3.75644655]
[1771298499752,2.28199936,86.904,86.855,3.75644655]
[1771298500653,2.28199936,86.904,86.857,3.75644655]
[1771298501548,2.28199936,86.904,86.861,3.75644655]
[1771298502655,10.3609,86.913,86.867,3.75644655]
[1771298503355,2.25538736,86.912,86.867,3.75644655]
[1771298503756,2.25538736,86.912,86.868,10.3661]
[1771298503959,2.70009397,86.9,86.855,72.52]
[1771298504256,2.70009397,86.9,86.856,3.89664298]
[1771298504556,2.25538736,86.901,86.856,3.89664298]
[1771298504855,10.3624,86.9,86.859,3.89664298]
[1771298505450,2.27290356,86.897,86.859,3.89664298]
[1771298506251,10.363,86.895,86.859,3.89664298]
[1771298506743,2.28119173,86.894,86.859,3.89664298]
[1771298506949,2.28119173,86.894,86.843,3.89664298]
[1771298508450,2.28119173,86.894,86.842,72.52]
[1771298508451,2.28119173,86.907,86.852,3.89664298]
[1771298508655,2.28119173,86.907,86.85,2.70009397]
[1771298508656,2.28119173,86.907,86.861,3.89664298]
[1771298509447,2.28119173,86.907,86.862,3.91499822]
[1771298509752,2.70009397,86.91,86.862,3.91499822]
[1771298510759,2.70009397,86.91,86.865,3.91499822]
[1771298511659,10.3604,86.917,86.865,3.91499822]
[1771298511660,2.51739706,86.916,86.865,3.91499822]
[1771298512059,2.51739706,86.916,86.868,3.91499822]
[1771298513757,2.51739706,86.916,86.874,3.91499822]
[1771298520772,2.70009397,86.93,86.881,3.91499822]
[1771298520773,2.5266675,86.928,86.881,3.91499822]
[1771298521376,10.3589,86.93,86.881,3.91499822]
[1771298521571,10.3589,86.93,86.882,3.91499822]
[1771298521873,10.3589,86.93,86.891,3.91499822]
[1771298522172,2.52647278,86.969,86.921,3.91499822]
[1771298522378,2.52647278,86.969,86.874,21.49794764]
[1771298522379,2.52647278,86.999,86.95,2.69625014]
[1771298522871,2.52647278,86.999,86.944,3.91499822]
[1771298523172,2.52647278,86.999,86.951,3.91499822]
[1771298523577,2.52647278,86.999,86.952,3.91499822]
[1771298526675,10.3507,86.998,86.952,3.91499822]
[1771298526881,2.1772947,86.997,86.952,3.91499822]
[1771298527679,10.3512,86.994,86.952,3.91499822]
[1771298528179,2.1772947,86.997,86.952,3.91499822]
[1771298528871,10.3501,87.004,86.952,3.91499822]
[1771298529273,4.87354484,87.01,86.952,3.91499822]
[1771298529274,10.3507,86.999,86.952,3.91499822]
[1771298529477,12.52648952,86.999,86.952,3.91499822]
[1771298530475,2.17578952,86.989,86.941,72.5]
[1771298531075,2.17578952,86.989,86.942,3.91499822]
[1771298531785,10.3514,86.993,86.942,3.91499822]
[1771298532580,2.17092871,87.004,86.951,3.91499822]
[1771298532581,10.3502,87.003,86.951,3.91499822]
[1771298532982,12.59728913,87.003,86.951,3.91499822]
[1771298535085,2.69625014,86.99,86.951,3.91499822]
[1771298535287,2.69625014,86.99,86.937,3.91161892]
[1771298535288,2.23975802,86.989,86.937,3.91161892]
[1771298535485,10.351,86.996,86.941,3.91161892]
[1771298537384,12.57523236,86.996,86.941,3.91161892]
[1771298537689,10.3516,86.991,86.941,3.91161892]
[1771298538680,2.22423236,86.995,86.941,3.91161892]
[1771298539489,2.22423236,86.995,86.945,3.91161892]
[1771298540892,2.22423236,86.995,86.947,3.91161892]
[1771298541487,2.23395298,86.992,86.94,2.69625014]
[1771298541693,2.23395298,86.989,86.94,3.91161892]
[1771298542784,2.23395298,86.989,86.942,3.91161892]
[1771298543395,2.69625014,87.0,86.942,3.91161892]
[1771298543586,2.31794117,87.001,86.952,3.91161892]
[1771298543892,2.31794117,86.999,86.952,3.91161892]
[1771298544389,2.31794117,86.989,86.941,3.91161892]
[1771298545694,2.31794117,86.989,86.943,3.91161892]
[1771298546900,2.36420572,86.979,86.934,10.3583]
[1771298548096,2.36420572,86.979,86.935,3.91161892]
[1771298550489,2.34226007,86.969,86.92,3.91161892]
[1771298550693,2.34226007,86.969,86.921,72.46]
[1771298550993,2.32825,86.958,86.92,3.91161892]
[1771298551498,2.32825,86.956,86.912,72.46]
[1771298552001,2.32825,86.956,86.913,3.91161892]
[1771298553599,2.69625014,86.95,86.913,3.91161892]
[1771298553804,2.31781929,86.939,86.887,3.91161892]
[1771298554000,2.69625014,86.93,86.887,3.91161892]
[1771298556201,296.0,86.989,86.874,10.3654]
[1771298556202,2.40329061,86.919,86.874,3.91161892]
[1771298556704,2.69625014,86.92,86.874,3.91161892]
[1771298556705,2.40329061,86.915,86.874,3.91161892]
[1771298556894,2.69625014,86.91,86.874,3.91161892]
[1771298557400,2.40329061,86.915,86.874,3.91161892]
[1771298557801,2.48320967,86.899,86.848,3.91161892]
[1771298558202,2.48320967,86.899,86.85,3.91161892]
[1771298558705,2.48320967,86.897,86.85,3.91161892]
[1771298559307,2.48320967,86.897,86.852,3.91161892]
[1771298559905,10.363,86.896,86.852,3.91161892]
[1771298560296,2.48320967,86.897,86.852,3.91161892]
[1771298560502,5.16123502,86.91,86.852,3.91161892]
[1771298560807,2.46498488,86.909,86.852,3.91161892]
[1771298561809,10.3618,86.905,86.852,3.91161892]
[1771298562013,2.48540263,86.904,86.852,3.91161892]
[1771298563508,2.69625014,86.9,86.852,3.91161892]
[1771298564306,2.49174186,86.899,86.852,3.91161892]
[1771298564807,2.49174186,86.899,86.854,10.3679]
[1771298565298,2.49174186,86.899,86.852,3.91161892]
[1771298569708,2.48342832,86.895,86.852,3.91161892]
[1771298569908,2.48342832,86.889,86.845,72.5]
[1771298571211,2.69625014,86.89,86.839,3.58754245]
[1771298571212,2.43971991,86.887,86.839,3.58754245]
[1771298571414,2.43971991,86.887,86.839,76.08754245]
[1771298571709,10.3627,86.898,86.842,10.3692]
[1771298571902,12.80241991,86.898,86.843,3.58754245]
[1771298572105,12.80241991,86.898,86.851,3.58754245]
[1771298574111,10.3631,86.895,86.851,3.58754245]
[1771298574318,12.85539905,86.895,86.851,3.58754245]
[1771298579313,2.48061087,86.909,86.861,3.58754245]
[1771298579518,2.48061087,86.909,86.863,3.58754245]
[1771298580514,2.48061087,86.908,86.863,3.58754245]
[1771298587922,2.40252044,86.899,86.852,3.58754245]
[1771298588824,2.40252044,86.898,86.852,3.58754245]
[1771298591019,2.36956366,86.906,86.854,3.58754245]
[1771298591723,10.362,86.904,86.858,3.58754245]
[1771298594228,12.76552629,86.904,86.858,3.58754245]
[1771298595021,10.3622,86.902,86.858,3.58754245]
[1771298595428,2.40379807,86.901,86.852,3.83518628]
[1771298596731,2.40379807,86.899,86.852,3.83518628]
[1771298597543,2.40739028,86.891,86.84,3.83518628]
[1771298597724,2.40739028,86.891,86.842,3.83518628]
[1771298598935,10.3639,86.887,86.842,3.83518628]
[1771298600828,12.75070022,86.887,86.842,3.83518628]
[1771298601230,2.38680022,86.886,86.843,18.01794529]
[1771298601431,2.38680022,86.884,86.843,18.01794529]
[1771298601935,2.38680022,86.884,86.844,3.83518628]
[1771298603232,2.38680022,86.884,86.844,18.01794529]
[1771298603938,2.38680022,86.884,86.845,3.83518628]
[1771298606736,2.38680022,86.884,86.846,3.83518628]
[1771298606935,2.43790773,86.909,86.854,14.18275901]
[1771298607137,2.43790773,86.909,86.85,16.8813127]
[1771298607344,2.43790773,86.909,86.85,20.71649898]
[1771298607547,2.43790773,86.909,86.851,3.83518628]
[1771298607841,2.43790773,86.909,86.852,3.83518628]
[1771298608742,2.43790773,86.895,86.852,3.83518628]
[1771298610550,10.58568103,86.929,86.851,86.70275901]
[1771298610551,2.35826627,86.885,86.851,72.52]
[1771298611457,2.31968538,86.882,86.841,3.83518628]
[1771298612949,72.52,86.907,86.829,14.18275901]
[1771298612950,2.24518099,86.875,86.829,14.18275901]
[1771298613257,2.24518099,86.875,86.825,72.52]
[1771298613458,2.24518099,86.875,86.826,72.52]
[1771298613757,2.24518099,86.875,86.827,3.83518628]
[1771298614651,10.3656,86.873,86.827,3.83518628]
[1771298614852,2.24518099,86.872,86.827,3.83518628]
[1771298615850,2.24518099,86.872,86.828,76.35518628]
[1771298616051,2.24518099,86.872,86.829,3.83518628]
[1771298616451,2.344943,86.87,86.83,72.52]
[1771298617459,2.344943,86.87,86.831,72.52]
[1771298617865,2.344943,86.87,86.832,72.52]
[1771298618360,2.344943,86.87,86.833,72.52]
[1771298618554,2.344943,86.87,86.834,3.83518628]
[1771298618958,2.29668588,86.868,86.834,3.83518628]
[1771298620553,10.3666,86.865,86.834,3.83518628]
[1771298620757,12.66328588,86.865,86.83,72.52]
[1771298620962,2.26100903,86.849,86.812,3.83518628]
[1771298621163,2.26100903,86.849,86.767,28.36551802]
[1771298621164,2.26100903,86.839,86.793,3.83518628]
[1771298621360,2.26100903,86.839,86.793,76.35518628]
[1771298622664,10.3711,86.828,86.793,76.35518628]
[1771298623965,10.3711,86.828,86.794,3.65882445]
[1771298626265,20.7302,86.878,86.776,3.65882445]
[1771298626266,3.0352846,86.819,86.776,3.65882445]
[1771298626662,2.69855369,86.81,86.776,3.65882445]
[1771298629368,3.0352846,86.819,86.776,3.65882445]
[1771298629873,10.3711,86.827,86.776,3.65882445]
[1771298630067,13.41968516,86.827,86.776,3.65882445]
[1771298630276,3.04858516,86.826,86.776,3.65882445]
[1771298630475,10.3723,86.817,86.776,3.65882445]
[1771298630974,3.08805149,86.809,86.764,76.21104582]
[1771298631375,10.3739,86.804,86.765,3.69104582]
[1771298632379,3.08805149,86.801,86.765,3.69104582]
[1771298632568,3.08805149,86.799,86.765,3.69104582]
[1771298632764,5.75762766,86.79,86.754,3.69104582]
[1771298632978,2.69855369,86.78,86.742,3.69104582]
[1771298633469,3.05907397,86.789,86.742,3.69104582]
[1771298633678,13.43477397,86.789,86.742,3.69104582]
[1771298634279,3.05907397,86.788,86.742,3.69104582]
[1771298634575,3.05907397,86.784,86.742,3.69104582]
[1771298634768,3.03348251,86.769,86.71,2.69855369]
[1771298634967,161.3446,86.819,86.717,3.69104582]
[1771298634968,3.03348251,86.759,86.717,3.69104582]
[1771298635976,10.3799,86.753,86.717,3.69104582]
[1771298637573,2.69855369,86.75,86.701,3.69104582]
[1771298637774,3.37084172,86.749,86.701,3.69104582]
[1771298639576,20.7471,86.807,86.698,72.52]
[1771298639577,10.3785,86.765,86.711,3.69104582]
[1771298640979,3.36159355,86.764,86.711,3.69104582]
[1771298642179,10.3791,86.76,86.711,3.69104582]
[1771298642482,16.43924724,86.76,86.711,3.69104582]
[1771298644082,16.448548,86.76,86.711,3.69104582]
[1771298644270,3.24701402,86.759,86.711,3.69104582]
[1771298649279,3.13974675,86.757,86.711,3.69104582]
[1771298650383,2.70785445,86.76,86.711,3.69104582]
[1771298650384,13.51944675,86.756,86.711,3.69104582]
[1771298651381,3.10204904,86.755,86.711,3.69104582]
[1771298652683,2.70785445,86.73,86.633,14.18275901]
[1771298652882,2.70785445,86.73,86.643,72.52]
[1771298653089,3.9003528,86.729,86.68,2.70785445]
[1771298653279,10.3837,86.722,86.68,2.70785445]
[1771298653582,2.70785445,86.73,86.68,2.70785445]
[1771298653783,3.9003528,86.748,86.69,2.70785445]
[1771298654178,3.92559872,86.759,86.691,10.3874]
[1771298654681,3.92559872,86.759,86.692,3.56581881]
[1771298654994,10.3805,86.749,86.692,3.56581881]